fUSD/lending_fUSD_20240329
["ID","MTS","AMOUNT","RATE_DAILY","PERIOD"]
[320919695,1711708247723,-500.0,0.00049863,120]
[320919696,1711708247733,-500.0,0.00049863,120]
[320919697,1711708247742,-500.0,0.00049863,120]
[320919698,1711708247751,-184.53982119,0.00049863,120]
[320919699,1711708247760,-500.0,0.00049863,120]
[320919700,1711708247770,-500.0,0.00049863,120]
[320919701,1711708247779,-500.0,0.00049863,120]
[320919702,1711708247788,-500.0,0.00049863,120]
[320919703,1711708247798,-500.0,0.00049863,120]
[320919704,1711708247808,-500.0,0.00049863,120]
[320919705,1711708247817,-593.01,0.00049863,120]
[320919706,1711708247826,-500.0,0.00049863,120]
[320919707,1711708247836,-559.15480638,0.00049863,120]
[320919708,1711708247845,-500.0,0.00049863,120]
[320919709,1711708247855,-500.0,0.00049863,120]
[320919710,1711708247864,-500.0,0.00049863,120]
[320919711,1711708247875,-500.0,0.00049863,120]
[320919712,1711708247885,-500.0,0.00049863,120]
[320919713,1711708247895,-500.0,0.00049863,120]
[320919714,1711708247905,-500.0,0.00049863,120]
[320919715,1711708247915,-500.0,0.00049863,120]
[320919716,1711708247925,-621.74055199,0.00049863,120]
[320919717,1711708247936,-500.0,0.00049863,120]
[320919718,1711708247946,-500.0,0.00049863,120]
[320919719,1711708247957,-500.0,0.00049863,120]
[320919720,1711708247969,-500.0,0.00049863,120]
[320919721,1711708247979,-500.0,0.00049863,120]
[320919722,1711708247988,-500.0,0.00049863,120]
[320919723,1711708247999,-500.0,0.00049863,120]
[320919724,1711708248010,-500.0,0.00049863,120]
[320919725,1711708248020,-500.0,0.00049863,120]
[320919726,1711708248030,-620.96,0.00049863,120]
[320919727,1711708248040,-500.0,0.00049863,120]
[320919728,1711708248049,-500.0,0.00049863,120]
[320919729,1711708248060,-500.0,0.00049863,120]
[320919730,1711708248069,-297.21391957,0.00049863,120]
[320919731,1711708248079,-500.0,0.00049863,120]
[320919732,1711708248090,-500.0,0.00049863,120]
[320919733,1711708248100,-500.0,0.00049863,120]
[320919734,1711708248109,-500.0,0.00049863,120]
[320919735,1711708248119,-500.0,0.00049863,120]
[320919736,1711708248129,-500.0,0.00049863,120]
[320919737,1711708248138,-500.0,0.00049863,120]
[320919738,1711708248148,-500.0,0.00049863,120]
[320919739,1711708248158,-3099.48,0.00049863,120]
[320919740,1711708248168,-500.0,0.00049863,30]
[320919741,1711708248179,-625.71378792,0.00049863,120]
[320919742,1711708248188,-963.78,0.00049863,120]
[320919743,1711708248198,-199.21379009,0.00049863,120]
[320919744,1711708248207,-500.0,0.00049863,120]
[320919745,1711708248218,-500.0,0.00049863,120]
[320919746,1711708248227,-500.0,0.00049863,120]
[320919747,1711708248237,-500.0,0.00049863,120]
[320919748,1711708248247,-500.0,0.00049863,120]
[320919749,1711708248257,-500.0,0.00049863,120]
[320919750,1711708248267,-500.0,0.00049863,120]
[320919751,1711708248278,-500.0,0.00049863,120]
[320919752,1711708248288,-519.2,0.00049863,120]
[320919753,1711708248297,-500.0,0.00049863,120]
[320919754,1711708248307,-500.0,0.00049863,120]
[320919755,1711708248317,-501.62,0.00049863,120]
[320919756,1711708248327,-620.46563312,0.00049863,120]
[320919757,1711708248337,-178.83092809,0.00049863,120]
[320919758,1711708248346,-557.58,0.00049863,120]
[320919759,1711708248355,-500.0,0.00049863,120]
[320919760,1711708248365,-500.0,0.00049863,120]
[320919761,1711708248375,-500.0,0.00049863,120]
[320919762,1711708248385,-500.0,0.00049863,120]
[320919763,1711708248394,-500.0,0.00049863,120]
[320919764,1711708248404,-709.66,0.00049863,120]
[320919765,1711708248413,-567.15,0.00049863,120]
[320919766,1711708248424,-500.0,0.00049863,120]
[320919767,1711708248433,-500.0,0.00049863,120]
[320919768,1711708248443,-500.0,0.00049863,120]
[320919769,1711708248453,-208.4,0.00049863,120]
[320919770,1711708248463,-500.0,0.00049863,120]
[320919771,1711708248472,-500.0,0.00049863,120]
[320919772,1711708248481,-500.0,0.00049863,120]
[320919773,1711708248491,-500.0,0.00049863,120]
[320919774,1711708248500,-500.0,0.00049863,120]
[320919775,1711708248509,-630.45587288,0.00049863,120]
[320919776,1711708248519,-500.0,0.00049863,120]
[320919777,1711708248529,-500.0,0.00049863,120]
[320919778,1711708248538,-500.0,0.00049863,120]
[320919779,1711708248547,-524.16520681,0.00049863,120]
[320919780,1711708248557,-500.0,0.00049863,120]
[320919781,1711708248566,-500.0,0.00049863,120]
[320919782,1711708248576,-500.0,0.00049863,120]
[320919783,1711708248585,-500.0,0.00049863,120]
[320919784,1711708248594,-500.0,0.00049863,120]
[320919785,1711708248604,-578.33,0.00049863,120]
[320919786,1711708248613,-580.38,0.00049863,120]
[320919787,1711708248624,-500.0,0.00049863,120]
[320919788,1711708248634,-629.0,0.00049863,120]
[320919789,1711708248644,-208.99582265,0.00049863,120]
[320919790,1711708248653,-500.0,0.00049863,120]
[320919791,1711708248663,-500.0,0.00049863,120]
[320919792,1711708248672,-500.0,0.00049863,120]
[320919793,1711708248682,-500.0,0.00049863,120]
[320919794,1711708248692,-259.28472485,0.00049863,120]
[320919795,1711708248702,-500.0,0.00049863,120]
[320919796,1711708248712,-500.0,0.00049863,120]
[320919797,1711708248721,-380.20069291,0.00049863,120]
[320919798,1711708248730,-500.0,0.00049863,120]
[320919799,1711708248739,-611.32,0.00049863,120]
[320919800,1711708248749,-500.0,0.00049863,120]
[320919801,1711708248758,-313.9263319,0.00049863,120]
[320919802,1711708248768,-500.0,0.00049863,120]
[320919803,1711708248777,-591.87742505,0.00049863,120]
[320919804,1711708248786,-500.0,0.00049863,120]
[320919805,1711708248795,-500.0,0.00049863,120]
[320919806,1711708248804,-500.0,0.00049863,120]
[320919807,1711708248814,-500.0,0.00049863,120]
[320919808,1711708248823,-500.0,0.00049863,7]
[320919809,1711708248832,-500.0,0.00049863,120]
[320919810,1711708248842,-500.0,0.00049863,120]
[320919811,1711708248851,-1801.63,0.00049863,120]
[320919812,1711708248860,-3114.25,0.00049863,120]
[320919813,1711708248870,-500.0,0.00049863,120]
[320919814,1711708248879,-500.0,0.00049863,120]
[320919815,1711708248889,-382.96950776,0.00049863,120]
[320919816,1711708248898,-521.79665591,0.00049863,120]
[320919817,1711708248907,-1502.82,0.00049863,120]
[320919818,1711708248917,-500.0,0.00049863,120]
[320919819,1711708248926,-787.13,0.00049863,120]
[320919820,1711708248935,-1314.84,0.00049863,120]
[320919821,1711708248944,-193.53860161,0.00049863,120]
[320919822,1711708248954,-1347.77,0.00049863,120]
[320919823,1711708248964,-500.0,0.00049863,120]
[320919824,1711708248975,-7989.96,0.00049863,120]
[320919825,1711708248988,-723.96,0.00049863,120]
[320919826,1711708248998,-500.0,0.00049863,120]
[320919827,1711708249008,-1801.48,0.00049863,120]
[320919828,1711708249018,-500.0,0.00049863,120]
[320919829,1711708249027,-500.0,0.00049863,120]
[320919830,1711708249043,-500.0,0.00049863,120]
[320919831,1711708249053,-500.0,0.00049863,120]
[320919832,1711708249062,-17663.5,0.00049863,120]
[320919833,1711708249071,-410.05637912,0.00049863,120]
[320919834,1711708249081,-312.75839214,0.00049863,120]
[320919835,1711708249091,-183.13752107,0.00049863,120]
[320919836,1711708249164,-1246.29,0.00049863,120]
[320919837,1711708249174,-2214.11,0.00049863,120]
[320919838,1711708249184,-500.0,0.00049863,120]
[320919839,1711708249193,-508.68621423,0.00049863,120]
[320919840,1711708249202,-500.0,0.00049863,120]
[320919841,1711708249211,-1024.96,0.00049863,120]
[320919842,1711708249221,-861.33,0.00049863,120]
[320919843,1711708249231,-500.0,0.00049863,120]
[320919844,1711708249240,-500.0,0.00049863,120]
[320919845,1711708249249,-10000.0,0.00049863,2]
[320919846,1711708249259,-500.0,0.00049863,120]
[320919847,1711708249268,-511.66,0.00049863,120]
[320919848,1711708249277,-500.0,0.00049863,120]
[320919849,1711708249287,-500.0,0.00049863,120]
[320919850,1711708249296,-500.0,0.00049863,120]
[320919851,1711708249305,-500.0,0.00049863,120]
[320919852,1711708249314,-1293.54,0.00049863,120]
[320919853,1711708249323,-1121.22,0.00049863,120]
[320919854,1711708249332,-564.46,0.00049863,120]
[320919855,1711708249341,-716.78,0.00049863,120]
[320919856,1711708249350,-2197.5,0.00049863,120]
[320919857,1711708249360,-500.0,0.00049863,120]
[320919858,1711708249370,-669.78,0.00049863,120]
[320919859,1711708249379,-500.0,0.00049863,120]
[320919860,1711708249388,-6349.4,0.00049863,120]
[320919861,1711708249397,-961.81,0.00049863,120]
[320919862,1711708249406,-393.91448945,0.00049863,120]
[320919863,1711708249415,-3558.64,0.00049863,120]
[320919864,1711708249425,-1314.94,0.00049863,120]
[320919865,1711708249434,-500.0,0.00049863,120]
[320919866,1711708249444,-500.0,0.00049863,120]
[320919867,1711708249453,-845.66,0.00049863,120]
[320919868,1711708249462,-772.01,0.00049863,120]
[320919869,1711708249471,-679.66,0.00049863,120]
[320919870,1711708249480,-707.53,0.00049863,120]
[320919871,1711708249489,-500.0,0.00049863,60]
[320919872,1711708249499,-2163.69,0.00049863,120]
[320919873,1711708249509,-579.62,0.00049863,120]
[320919874,1711708249518,-834.55,0.00049863,120]
[320919875,1711708249527,-604.68,0.00049863,120]
[320919876,1711708249537,-590.04,0.00049863,120]
[320919877,1711708249546,-1757.23,0.00049863,120]
[320919878,1711708249556,-500.0,0.00049863,120]
[320919879,1711708249565,-988.96,0.00049863,120]
[320919880,1711708249574,-637.73,0.00049863,120]
[320919881,1711708249584,-936.13,0.00049863,120]
[320919882,1711708249593,-500.0,0.00049863,120]
[320919883,1711708249602,-511.72,0.00049863,120]
[320919884,1711708249612,-592.45,0.00049863,120]
[320919885,1711708249621,-954.88,0.00049863,120]
[320919886,1711708249630,-949.42,0.00049863,120]
[320919887,1711708249640,-1582.85,0.00049863,120]
[320919888,1711708249649,-230.37487242,0.00049863,120]
[320919889,1711708249659,-1219.21,0.00049863,120]
[320919890,1711708249667,-2893.84,0.00049863,120]
[320919891,1711708249677,-500.0,0.00049863,120]
[320919892,1711708249686,-500.0,0.00049863,120]
[320919893,1711708249695,-1002.31,0.00049863,120]
[320919894,1711708249704,-1030.05,0.00049863,120]
[320919895,1711708249714,-2922.94,0.00049863,120]
[320919896,1711708249723,-500.0,0.00049863,120]
[320919897,1711708249732,-500.0,0.00049863,120]
[320919898,1711708249742,-894.69,0.00049863,120]
[320919899,1711708249751,-1659.67,0.00049863,120]
[320919900,1711708249760,-358.83974314,0.00049863,120]
[320919901,1711708249769,-1011.07,0.00049863,120]
[320919902,1711708249779,-1528.78,0.00049863,120]
[320919903,1711708249788,-1385.27,0.00049863,120]
[320919904,1711708249798,-1114.72,0.00049863,120]
[320919905,1711708249807,-923.79,0.00049863,120]
[320919906,1711708249816,-500.0,0.00049863,120]
[320919907,1711708249826,-3835.95,0.00049863,120]
[320919908,1711708249836,-500.0,0.00049863,120]
[320919909,1711708249845,-12321.7,0.00049863,120]
[320919910,1711708249854,-500.0,0.00049863,120]
[320919911,1711708249863,-1260.9,0.00049863,120]
[320919912,1711708249872,-2921.0,0.00049863,120]
[320919913,1711708249882,-500.0,0.00049863,120]
[320919914,1711708249891,-774.37,0.00049863,120]
[320919915,1711708249900,-857.5,0.00049863,120]
[320919916,1711708249908,-500.0,0.00049863,120]
[320919917,1711708249917,-824.0,0.00049863,120]
[320919918,1711708249926,-500.0,0.00049863,120]
[320919919,1711708249935,-1215.28,0.00049863,120]
[320919920,1711708249944,-3786.28,0.00049863,120]
[320919921,1711708249953,-500.0,0.00049863,120]
[320919922,1711708249962,-500.0,0.00049863,120]
[320919923,1711708249971,-3298.59,0.00049863,120]
[320919924,1711708249985,-500.0,0.00049863,120]
[320919925,1711708249994,-1068.05,0.00049863,120]
[320919926,1711708250003,-443.76214302,0.00049863,120]
[320919927,1711708250014,-1691.34,0.00049863,120]
[320919928,1711708250023,-475.28369788,0.00049863,120]
[320919929,1711708250034,-534.39843446,0.00049863,120]
[320919930,1711708250043,-1985.8,0.00049863,120]
[320919931,1711708250053,-628.23,0.00049863,120]
[320919932,1711708250062,-500.0,0.00049863,120]
[320919933,1711708250071,-1104.5,0.00049863,120]
[320919934,1711708250081,-1329.16,0.00049863,120]
[320919935,1711708250090,-1589.12,0.00049863,120]
[320919936,1711708250101,-839.36,0.00049863,120]
[320919937,1711708250110,-1302.94,0.00049863,21]
[320919938,1711708250121,-500.0,0.00049863,120]
[320919939,1711708250130,-405.57255308,0.00049863,120]
[320919940,1711708250140,-3675.34,0.00049863,120]
[320919941,1711708250149,-500.0,0.00049863,120]
[320919942,1711708250159,-1214.03,0.00049863,120]
[320919943,1711708250168,-500.0,0.00049863,120]
[320919944,1711708250178,-944.06,0.00049863,120]
[320919945,1711708250188,-649.0,0.00049863,120]
[320919946,1711708250197,-1996.6,0.00049863,120]
[320919947,1711708250206,-500.0,0.00049863,120]
[320919948,1711708250216,-764.36,0.00049863,120]
[320919949,1711708250225,-1023.11,0.00049863,120]
[320919950,1711708250235,-500.0,0.00049863,120]
[320919951,1711708250245,-520.18,0.00049863,120]
[320919952,1711708250255,-721.06,0.00049863,120]
[320919953,1711708250265,-736.29,0.00049863,120]
[320919954,1711708250274,-500.0,0.00049863,120]
[320919955,1711708250283,-1686.58,0.00049863,120]
[320919956,1711708250293,-549.29,0.00049863,120]
[320919957,1711708250302,-1025.87,0.00049863,120]
[320919958,1711708250312,-500.0,0.00049863,120]
[320919959,1711708250321,-883.71,0.00049863,120]
[320919960,1711708250331,-500.0,0.00049863,120]
[320919961,1711708250340,-500.0,0.00049863,120]
[320919962,1711708250349,-1005.77,0.00049863,120]
[320919963,1711708250359,-786.57,0.00049863,120]
[320919964,1711708250368,-870.55,0.00049863,120]
[320919965,1711708250380,-500.0,0.00049863,120]
[320919966,1711708250390,-1566.64,0.00049863,120]
[320919967,1711708250399,-805.57,0.00049863,120]
[320919968,1711708250409,-500.0,0.00049863,120]
[320919969,1711708250418,-1197.01,0.00049863,120]
[320919970,1711708250428,-500.0,0.00049863,120]
[320919971,1711708250438,-500.0,0.00049863,120]
[320919972,1711708250447,-593.05764614,0.00049863,120]
[320919973,1711708250456,-372.86631155,0.00049863,120]
[320919974,1711708250466,-500.0,0.00049863,120]
[320919975,1711708250475,-2434.7,0.00049863,120]
[320919976,1711708250485,-500.0,0.00049863,120]
[320919977,1711708250494,-974.18,0.00049863,120]
[320919978,1711708250504,-500.0,0.00049863,120]
[320919979,1711708250514,-500.0,0.00049863,120]
[320919980,1711708250524,-636.89,0.00049863,120]
[320919981,1711708250534,-1418.19,0.00049863,120]
[320919982,1711708250544,-500.0,0.00049863,120]
[320919983,1711708250553,-933.57,0.00049863,120]
[320919984,1711708250563,-170.96417965,0.00049863,120]
[320919985,1711708250573,-500.0,0.00049863,120]
[320919986,1711708250582,-539.55,0.00049863,120]
[320919987,1711708250592,-500.0,0.00049863,120]
[320919988,1711708250602,-639.96953987,0.00049863,120]
[320919989,1711708250612,-1301.96,0.00049863,120]
[320919990,1711708250622,-500.0,0.00049863,120]
[320919991,1711708250631,-500.0,0.00049863,120]
[320919992,1711708250643,-979.94,0.00049863,120]
[320919993,1711708250653,-500.0,0.00049863,120]
[320919994,1711708250662,-165.1719352,0.00049868,38]
[320919995,1711708250672,-207.61,0.0004987,15]
[320919996,1711708250681,-168.5,0.0004988,15]
[320919997,1711708250691,-150.5,0.0004988,15]
[320919998,1711708250700,-150.5,0.0004989,15]
[320919999,1711708250709,-150.5,0.0004989,15]
[320920000,1711708250719,-207.97893084,0.0004989,2]
[320920001,1711708250728,-150.0,0.0004989,30]
[320920002,1711708250738,-150.0,0.0004989,30]
[320920003,1711708250747,-150.0,0.0004989,30]
[320920004,1711708250757,-150.0,0.0004989,30]
[320920005,1711708250766,-1802.68724567,0.000499,2]
[320920006,1711708250776,-83471.9352869,0.000499,21]
[320920007,1711708250995,-406.24944498,0.00049863,120]
[320920008,1711708251008,-93.75055502,0.00049863,120]
[320920009,1711708251019,-211.74193809,0.000499,21]
[320920010,1711708251501,-5000.0,0.00049215,3]
[320920011,1711708251511,-500.0,0.00049588,10]
[320920012,1711708251521,-244.05,0.00049588,10]
[320920013,1711708251532,-154.0,0.00049863,7]
[320920014,1711708251541,-86235.06563407,0.000499,21]
[320920015,1711708251672,-5981.46055198,0.000499,21]
[320920016,1711708251793,-72090.92481886,0.000499,21]
[320920017,1711708251809,-4686.77051517,0.000499,21]
[320920018,1711708251826,-657.93535186,0.000499,21]
[320920019,1711708253835,-4408.93195675,0.000499,21]
[320920020,1711708253847,-128283.02335666,0.000499,21]
[320920021,1711708253860,-3493.7608908,0.000499,21]
[320920022,1711708255291,1445.69720265,0.0002,2]
[320920023,1711709197162,-1000.0,0.00027373,2]
[320920024,1711709197188,-52.9508629,0.00027374,2]
[320920043,1711709431869,-330.6251,0.00027276,2]
[320920044,1711709431879,-103.54025802,0.00034397,4]
[320920045,1711709431891,-51.45974198,0.00034397,4]
[320920046,1711709431906,-364.11566133,0.00034398,4]
[320920047,1711709431916,-1000.0,0.00036884,4]
[320920048,1711709431927,-154.78058142,0.00036885,2]
[320920049,1711709431937,-169.05,0.00036982,2]
[320920050,1711709431947,-300.0,0.00036985,3]
[320920051,1711709431958,-150.0,0.00036985,3]
[320920052,1711709431968,-2535.89247643,0.00036986,4]
[320920053,1711709431978,-176.19,0.00037198,2]
[320920054,1711709431988,-499.99,0.00039039,2]
[320920055,1711709431999,-2622.64739998,0.0004,5]
[320920056,1711709432010,-2227.02,0.0004,2]
[320920057,1711709432021,-323.04,0.0004,2]
[320920058,1711709432031,-9999.99,0.0004,2]
[320920059,1711709432040,-838.14,0.0004,2]
[320920060,1711709432051,-210.0,0.00040684,5]
[320920061,1711709432062,-154.78058141,0.00041178,2]
[320920062,1711709432071,-472.36284,0.0004299,2]
[320920063,1711709432082,-1235.44561692,0.00042998,4]
[320920064,1711709432093,-1500.0,0.00042999,2]
[320920066,1711709432103,-30017.04882684,0.00043,2]
[320920067,1711709432114,-463.0,0.000432,3]
[320920069,1711709432124,-158.01197033,0.00044628,4]
[320920072,1711709432134,-150.99,0.00044628,10]
[320920073,1711709432150,-150.99,0.00044628,2]
[320920075,1711709432161,-154.78058141,0.0004547,2]
[320920077,1711709432171,-158.52,0.00045987,15]
[320920079,1711709432181,-1338.42,0.00046105,2]
[320920082,1711709432191,-1000.0,0.0004611,2]
[320920084,1711709432201,-169.22,0.00046166,2]
[320920085,1711709432210,-173.522935,0.0004626,30]
[320920087,1711709432220,-505.27,0.00046421,2]
[320920089,1711709432231,-1901.02,0.00046423,120]
[320920092,1711709432240,-547.58,0.0004644,2]
[320920094,1711709432251,-150.0,0.0004644,2]
[320920095,1711709432261,-500.0,0.0004651,2]
[320920097,1711709432271,-250.0,0.00046514,112]
[320920099,1711709432282,-232.01,0.00046566,2]
[320920101,1711709432293,-9415.01,0.00046606,2]
[320920103,1711709432306,-3397.20654774,0.00046638,2]
[320920109,1711709432356,-6993.4,0.00046638,2]
[320920119,1711709437881,-2655.7393363,0.00046638,2]
[320920120,1711709438133,-951.47966426,0.00046638,2]
[320920121,1711709438146,-488.5644517,0.00046638,2]
[320920122,1711709438158,-241.22868501,0.00046687,2]
[320920132,1711709442968,-794.41,0.00044592,2]
[320920133,1711709442983,-258.77131499,0.00046687,2]
[320920134,1711709442993,-1246.21,0.00046691,2]
[320920135,1711709443003,-414.3211475,0.00046707,2]
[320920136,1711709443128,-1200.9488525,0.00046707,2]
[320920137,1711709443138,-250.0,0.00046718,120]
[320920138,1711709443149,-240.12,0.00046733,2]
[320920139,1711709443159,-1643.23,0.00046758,2]
[320920140,1711709443169,-169.77,0.00046787,2]
[320920141,1711709443178,-1027.971,0.0004681,30]
[320920142,1711709443187,-2334.52,0.00046817,120]
[320920143,1711709443198,-150.99,0.00046817,10]
[320920144,1711709443208,-794.41,0.00046856,2]
[320920145,1711709443217,-720.04,0.00047079,2]
[320920146,1711709443227,-720.04,0.00047092,2]
[320920147,1711709443237,-720.04,0.00047104,2]
[320920148,1711709443250,-720.04,0.00047116,2]
[320920150,1711709443260,-720.04,0.00047129,2]
[320920152,1711709443270,-720.04,0.00047141,2]
[320920153,1711709443280,-720.04,0.00047154,2]
[320920154,1711709443290,-720.04,0.00047166,2]
[320920155,1711709443303,-720.04,0.00047178,2]
[320920156,1711709443313,-720.04,0.00047191,2]
[320920157,1711709443323,-720.04,0.00047203,2]
[320920158,1711709443333,-720.04,0.00047216,2]
[320920159,1711709443343,-720.04,0.00047228,2]
[320920160,1711709443353,-720.04,0.0004724,2]
[320920161,1711709443363,-720.04,0.00047253,2]
[320920162,1711709443372,-720.04,0.00047265,2]
[320920163,1711709443385,-720.04,0.00047277,2]
[320920164,1711709443395,-720.04,0.0004729,2]
[320920165,1711709443406,-720.04,0.00047302,2]
[320920166,1711709443418,-720.04,0.00047315,2]
[320920167,1711709443428,-2492.97,0.00047442,120]
[320920168,1711709443439,-166.22,0.00048759,120]
[320920169,1711709443450,-159.87362639,0.00048791,30]
[320920170,1711709443461,-529.681,0.000491,2]
[320920171,1711709443471,-432.3772,0.00049109,2]
[320920172,1711709443482,-2470.8956,0.00049109,2]
[320920173,1711709443493,-794.41,0.0004912,2]
[320920174,1711709443503,-10910.62037802,0.00049161,2]
[320920175,1711709443513,-159.59,0.00049173,2]
[320920176,1711709443523,-187.99296374,0.00049203,2]
[320920177,1711709443536,-4956.15369872,0.00049209,2]
[320920178,1711709443590,-415.01603398,0.00049209,2]
[320920179,1711709443608,-2824.64565934,0.00049209,2]
[320920183,1711709445801,-257.0491371,0.00049208,4]
[320920184,1711709445812,-508.83013217,0.00049209,2]
[320920185,1711709445822,-283.34073073,0.00049211,2]
[320920186,1711709445920,-1000.0,0.00049211,2]
[320920187,1711709445977,-4090.15770395,0.00049211,2]
[320920188,1711709445990,-3331.14708953,0.00049211,2]
[320920189,1711709446000,-364.8128,0.00049215,2]
[320920190,1711709446009,-1000.0,0.00049215,2]
[320920191,1711709446019,-187.99296374,0.00049216,2]
[320920192,1711709446028,-166.06662529,0.00049222,2]
[320920193,1711709446037,-166.06662529,0.00049222,2]
[320920194,1711709446047,-187.99296374,0.00049237,2]
[320920195,1711709446160,-166.06662529,0.00049241,2]
[320920196,1711709446171,-1147.38822712,0.00049256,2]
[320920197,1711709446216,-295.41221015,0.00027374,2]
[320920198,1711709446225,-7557.25729709,0.00049256,2]
[320920199,1711709446234,-166.06662529,0.00049261,2]
[320920200,1711709446243,-157.032919,0.00049274,81]
[320920201,1711709446253,-8704.64552421,0.0004928,2]
[320920202,1711709446262,-157.032919,0.00049284,82]
[320920203,1711709446272,-187.99296374,0.00049285,2]
[320920204,1711709446281,-157.032919,0.00049294,83]
[320920205,1711709446290,-157.032919,0.00049304,84]
[320920206,1711709446300,-1787.925401,0.00049313,4]
[320920207,1711709470028,298554.30279735,0.00018,2]
[320920208,1711709470056,25000.0,0.00018,2]
[320920209,1711709470086,100000.0,0.00018,2]
[320920210,1711709470109,212.3132292,0.00018,2]
[320920211,1711709470131,212.3132292,0.00018,2]
[320920212,1711709470153,212.3132292,0.00018,2]
[320920213,1711709470176,212.3132292,0.00018,2]
[320920214,1711709470199,212.3132292,0.00018,2]
[320920215,1711709470221,212.3132292,0.00018,2]
[320920216,1711709470243,212.3132292,0.00018,2]
[320920217,1711709470264,212.3132292,0.00018,2]
[320920218,1711709470285,212.3132292,0.00018,2]
[320920219,1711709470311,212.3132292,0.00018,2]
[320920220,1711709470337,25000.0,0.00018,2]
[320920221,1711709470365,23608.0,0.00018,2]
[320920222,1711709470391,11846.0,0.00018,2]
[320920223,1711709470417,1962633.0,0.00018,2]
[320920224,1711709470451,5000000.0,0.00018,2]
[320920225,1711709470478,2286658.61546954,0.00018,2]
[320920226,1711709470504,25000.0,0.00018,2]
[320920227,1711709470535,40000.0,0.00018,2]
[320920228,1711709470560,25000.0,0.00018,2]
[320920229,1711709470583,198368.10602962,0.00018,2]
[320920230,1711709495331,805.10028194,0.00021,2]
[320920231,1711709510418,288.93446845,0.0002,2]
[320920240,1711709633958,938.80000398,0.0002,2]
[320920241,1711709634845,19579.69148142,0.0002,2]
[320920242,1711709640734,2727984.20501713,0.00018,2]
[320920243,1711709640759,25000.0,0.00018,2]
[320920244,1711709640783,29419.1896,0.00018,2]
[320920245,1711709640807,25000.0,0.00018,2]
[320920246,1711709640832,25000.0,0.00018,2]
[320920247,1711709640861,700000.0,0.00018,2]
[320920248,1711709640888,78450.0,0.00018,2]
[320920249,1711709640914,8000.0,0.00018,2]
[320920250,1711709640940,50000.0,0.00018,2]
[320920251,1711709640964,439504.08648606,0.00018,2]
[320920252,1711709653498,-549.18620738,0.0002,2]
[320920253,1711709658649,-157.39460846,0.00019999,2]
[320920254,1711709658968,-157.39460846,0.00019999,2]
[320920255,1711709660185,-157.39460846,0.00019999,2]
[320920256,1711709661501,-77.002382,0.00019999,2]
[320920257,1711709661524,-80.39222646,0.0002,2]
[320920258,1711709662361,-157.39460846,0.0002,2]
[320920259,1711709662654,-151.82696168,0.0002,2]
[320920260,1711709662675,-5.56764678,0.0002,2]
[320920261,1711709662956,-157.39460846,0.0002,2]
[320920262,1711709663238,-157.39460846,0.0002,2]
[320920263,1711709663828,-157.39460846,0.0002,2]
[320920264,1711709664753,-157.39460846,0.0002,2]
[320920265,1711709671619,26567.77002359,0.00015,2]
[320920269,1711709717894,751.55662504,0.00026399,5]
[320920272,1711709978380,-4458.23738654,0.00019793,2]